Workbook

Sheet gauss3 21
A1: PDF and CDF - gauss3, 21 pts | F1: Hit ALT-F11 to see VBA Code
K2: Enter
A3: Enter Gaussian Parameters | K3: Calc
A4: divisor | B4: 3 | C4: Enter N-sigma process
A5: sigma | B5: =(B9-B8)/2/B4 -> 0.3333333333 | C5: ((UL-LL)/2)/divisor
A6: mean | B6: 0
I7: Get Table
A8: LL | B8: -1 | C8: Lower Limit | H8: Copy this cell -> | I8: =getTable($E$16:$E$37, $F$16:$F$37) -> Table(input , 0,-1, 0.001,-0.905, 0.004,-0.81, 0.01,-0.714, 0.022,-0.619, 0.042,-0.524, 0.075,-0.429, 0.125,-0.333, 0.194,-0.238, 0.283,-0.143, 0.387,-0.048, 0.5,0.048, 0.613,0.143, 0.717,0.238, 0.806,0.333, 0.875,0.429, 0.925,0.524, 0.958,0.619, 0.978,0.714, 0.99,0.81, 0.996,0.905, 0.999,1)
A9: UL | B9: 1 | C9: Upper Limit | H9: Paste "values" here -> | I9: Table(input , 0,-1, 0.001,-0.905, 0.004,-0.81, 0.01,-0.714, 0.022,-0.619, 0.042,-0.524, 0.075,-0.429, 0.125,-0.333, 0.194,-0.238, 0.283,-0.143, 0.387,-0.048, 0.5,0.048, 0.613,0.143, 0.717,0.238, 0.806,0.333, 0.875,0.429, 0.925,0.524, 0.958,0.619, 0.978,0.714, 0.99,0.81, 0.996,0.905, 0.999,1)
H10: Use Table() for SPICE lookup.
A11: K scaling | B11: =1/(B5*SQRT(2*PI())) -> 1.196826841 | C11: 1/(sigma*sqrt(2*pi)
A12: Nmax | B12: =MAX(C16:C116) -> 21
A14: Create Data | E14: ICDF look-up table
C15: Index | D15: PDF | E15: CDF | F15: x
C16: 0 | D16: =$B$11*EXP(-0.5*((F16-$B$6)/$B$5)^2) -> 0.01329554524 | E16: 0 | F16: =$B$8+($B$9-$B$8)/$B$12*C16 -> -1
C17: =C16+1 -> 1 | D17: =$B$11*EXP(-0.5*((F17-$B$6)/$B$5)^2) -> 0.03007684375 | E17: =E16+D16/$D$39 -> 0.001268288116 | F17: =$B$8+($B$9-$B$8)/$B$12*C17 -> -0.9047619048
C18: =C17+1 -> 2 | D18: 0.06270551753 | E18: =E17+D17/$D$39 -> 0.004137377186 | F18: -0.8095238095
C19: 3 | D19: =$B$11*EXP(-0.5*((F19-$B$6)/$B$5)^2) -> 0.1204832413 | E19: 0.01011897939 | F19: -0.7142857143
C20: 4 | D20: 0.2133511156 | E20: 0.0216121119 | F20: -0.619047619
C21: 5 | D21: 0.348185421 | E21: 0.04196409294 | F21: -0.5238095238
C22: 6 | D22: 0.5236892228 | E22: 0.07517818261 | F22: -0.4285714286
C23: 7 | D23: 0.7259121736 | E23: 0.1251339239 | F23: -0.3333333333
C24: 8 | D24: 0.9273462325 | E24: 0.1943801088 | F24: -0.2380952381
C25: 9 | D25: 1.091810165 | E25: 0.2828414833 | F25: -0.1428571429
C26: 10 | D26: 1.18467642 | E26: 0.3869913946 | F26: -0.04761904762
C27: 11 | D27: 1.18467642 | E27: 0.5 | F27: 0.04761904762
C28: 12 | D28: 1.091810165 | E28: 0.6130086054 | F28: 0.1428571429
C29: 13 | D29: 0.9273462325 | E29: 0.7171585167 | F29: 0.2380952381
C30: 14 | D30: 0.7259121736 | E30: 0.8056198912 | F30: 0.3333333333
C31: 15 | D31: 0.5236892228 | E31: 0.8748660761 | F31: 0.4285714286
C32: 16 | D32: 0.348185421 | E32: 0.9248218174 | F32: 0.5238095238
C33: 17 | D33: 0.2133511156 | E33: 0.9580359071 | F33: 0.619047619
C34: 18 | D34: 0.1204832413 | E34: 0.9783878881 | F34: 0.7142857143
C35: 19 | D35: 0.06270551753 | E35: 0.9898810206 | F35: 0.8095238095
C36: 20 | D36: 0.03007684375 | E36: 0.9958626228 | F36: 0.9047619048
C37: 21 | D37: 0.01329554524 | E37: 0.9987317119 | F37: 1
C39: Sum | D39: =SUM(D16:D37) -> 10.4830638 | E39: sum used for CDF normalizing

Sheet BimodalG 21
A1: PDF and CDF - Gaussian Bimodal
I2: Enter
A3: Enter Gaussian Parameters | E3: Remove Center Values | I3: Calc
A4: divisor | B4: 3 | C4: Enter N-sigma process | E4: removal factor % | F4: 50
A5: std | B5: =(B9-B8)/2/B4 -> 0.3333333333 | C5: ((UL-LL)/2)/divisor
A6: mean | B6: 0 | E6: Ntot | F6: =MAX(B16:B36) -> 20
E7: center | F7: =F6/2 -> 10 | J7: Get Table
A8: LL | B8: -1 | C8: Lower Limit | I8: Copy this cell -> | J8: =getTable($E$16:$E$36, $F$16:$F$36) -> Table(input , 0,-1, 0.011,-0.905, 0.026,-0.81, 0.047,-0.714, 0.076,-0.619, 0.112,-0.524, 0.158,-0.429, 0.212,-0.333, 0.276,-0.238, 0.346,-0.143, 0.422,-0.048, 0.5,0.048, 0.578,0.143, 0.654,0.238, 0.724,0.333, 0.788,0.429, 0.842,0.524, 0.888,0.619, 0.924,0.714, 0.953,0.81, 0.974,0.905)
A9: UL | B9: 1 | C9: Upper Limit | E9: width | F9: =F6*F4/100 -> 10 | I9: Paste "values" here -> | J9: Table(input , 0,-1, 0.008,-0.9, 0.026,-0.8, 0.064,-0.7, 0.14,-0.6, 0.276,-0.5, 0.5,-0.4, 0.5,-0.3, 0.5,-0.2, 0.5,-0.1, 0.5,0, 0.5,0.1, 0.5,0.2, 0.5,0.3, 0.5,0.4, 0.5,0.5, 0.724,0.6, 0.86,0.7, 0.936,0.8, 0.974,0.9, 0.992,1)
E10: half_width | F10: =F9/2 -> 5 | I10: Use Table() for SPICE lookup.
A11: K1 | B11: 1 | C11: PDF scaling
A14: Create Data
B15: Index | C15: select | D15: Gauss-Bimodal | E15: CDF | F15: x
B16: 0 | C16: =IF(AND(B16>($F$7-$F$10),B16<($F$7+$F$10)),0,1) -> 1 | D16: =IF(C16>0,$B$11*EXP(-0.5*((F16-$B$6)/$B$5)^2), 0) -> 0.01110899654 | E16: 0 | F16: =$B$8+($B$9-$B$8)/$F$6*B16 -> -1
B17: =B16+1 -> 1 | C17: 1 | D17: =IF(C17>0,$B$11*EXP(-0.5*((F17-$B$6)/$B$5)^2), 0) -> 0.02612140985 | E17: =E16+D16/$D$38 -> 0.007649066031 | F17: =$B$8+($B$9-$B$8)/$F$6*B17 -> -0.9
B18: =B17+1 -> 2 | C18: 1 | D18: =IF(C18>0,$B$11*EXP(-0.5*((F18-$B$6)/$B$5)^2), 0) -> 0.05613476283 | E18: =E17+D17/$D$38 -> 0.02563488393 | F18: -0.8
B19: 3 | C19: 1 | D19: 0.1102505253 | E19: 0.06428630542 | F19: -0.7
B20: 4 | C20: 1 | D20: 0.1978986991 | E20: 0.1401989718 | F20: -0.6
B21: 5 | C21: 1 | D21: 0.3246524674 | E21: 0.2764615236 | F21: -0.5
B22: 6 | C22: 0 | D22: 0 | E22: 0.5 | F22: -0.4
B23: 7 | C23: 0 | D23: 0 | E23: 0.5 | F23: -0.3
B24: 8 | C24: 0 | D24: 0 | E24: 0.5 | F24: -0.2
B25: 9 | C25: 0 | D25: 0 | E25: 0.5 | F25: -0.1
B26: 10 | C26: 0 | D26: 0 | E26: 0.5 | F26: 0
B27: 11 | C27: 0 | D27: 0 | E27: 0.5 | F27: 0.1
B28: 12 | C28: 0 | D28: 0 | E28: 0.5 | F28: 0.2
B29: 13 | C29: 0 | D29: 0 | E29: 0.5 | F29: 0.3
B30: 14 | C30: 0 | D30: 0 | E30: 0.5 | F30: 0.4
B31: 15 | C31: 1 | D31: 0.3246524674 | E31: 0.5 | F31: 0.5
B32: 16 | C32: 1 | D32: 0.1978986991 | E32: 0.7235384764 | F32: 0.6
B33: 17 | C33: 1 | D33: 0.1102505253 | E33: 0.8598010282 | F33: 0.7
B34: 18 | C34: 1 | D34: 0.05613476283 | E34: 0.9357136946 | F34: 0.8
B35: 19 | C35: 1 | D35: 0.02612140985 | E35: 0.9743651161 | F35: 0.9
B36: 20 | C36: 1 | D36: 0.01110899654 | E36: 0.992350934 | F36: 1
D38: =SUM(D16:D36) -> 1.452333722 | E38: sum for CDF normalizing

Sheet Voff datasheet
A1: PDF and CDF - enter voff from datasheet
K2: Enter
K3: Calc
A7: Enter Data | I7: Get Table
A8: LL | B8: -0.3 | H8: Copy this cell -> | I8: =getTable($E$16:$E$28, $F$16:$F$28) -> Table(input , 0,-1, 0.011,-0.905, 0.026,-0.81, 0.047,-0.714, 0.076,-0.619, 0.112,-0.524, 0.158,-0.429, 0.212,-0.333, 0.276,-0.238, 0.346,-0.143, 0.422,-0.048, 0.5,0.048, 0.578,0.143)
A9: UL | B9: 0.3 | H9: Paste "values" here -> | I9: Table(x , 0,-0.3, 0.53,-0.25, 0.66,-0.2, 0.72,-0.15, 0.79,-0.1, 0.85,-0.05, 0.89,0, 0.93,0.05, 0.94,0.1, 0.95,0.15, 0.97,0.2, 0.98,0.25, 0.99,0.3)
H10: Use Table() for SPICE lookup.
A12: Nmax | B12: =MAX(C16:C107) -> 12
A14: Create Data
C15: Index | D15: Enter % | E15: CDF | F15: x
C16: 0 | D16: 58 | E16: 0 | F16: =$B$8+($B$9-$B$8)/$B$12*C16 -> -0.3
C17: =C16+1 -> 1 | D17: 14 | E17: =E16+D16/$D$30 -> 0.5321100917 | F17: =$B$8+($B$9-$B$8)/$B$12*C17 -> -0.25
C18: =C17+1 -> 2 | D18: 7 | E18: =E17+D17/$D$30 -> 0.6605504587 | F18: -0.2
C19: 3 | D19: 7 | E19: 0.7247706422 | F19: -0.15
C20: 4 | D20: 7 | E20: 0.7889908257 | F20: -0.1
C21: 5 | D21: 4 | E21: 0.8532110092 | F21: -0.05
C22: 6 | D22: 4 | E22: 0.8899082569 | F22: 0
C23: 7 | D23: 2 | E23: 0.9266055046 | F23: 0.05
C24: 8 | D24: 1 | E24: 0.9449541284 | F24: 0.1
C25: 9 | D25: 2 | E25: 0.9541284404 | F25: 0.15
C26: 10 | D26: 1 | E26: 0.9724770642 | F26: 0.2
C27: 11 | D27: 1 | E27: 0.9816513761 | F27: 0.25
C28: 12 | D28: 1 | E28: 0.9908256881 | F28: 0.3
C30: Sum | D30: =SUM(D16:D28) -> 109 | E30: sum used for CDF normalizing

Sheet voff sim
A1: LTSPICE Simulation - use .meas to get vo for 101 runs
A4: copy data from LTSPICE *.log file
A5: step | B5: v(vo) | C5: at
A6: 1 | B6: -2.99879e-07 | C6: 0.0001
A7: 2 | B7: -2.3708e-07 | C7: 0.0001 | J7: Bin | K7: Frequency | M7: Histogram Bins
A8: 3 | B8: -2.81761e-07 | C8: 0.0001 | J8: =N8 -> -3e-07 | K8: =FREQUENCY($B$6:$B$106,$J$8:$J$20) -> 0 | M8: LL | N8: =-0.0000003 -> -3e-07
A9: 4 | B9: -8.43821e-08 | C9: 0.0001 | J9: =J8+$N$11 -> -2.5e-07 | K9: 54 | M9: UL | N9: =-N8 -> 3e-07
A10: 5 | B10: -2.2884e-07 | C10: 0.0001 | J10: =J9+$N$11 -> -2e-07 | K10: 14 | M10: Bins | N10: 12
A11: 6 | B11: -2.54726e-07 | C11: 0.0001 | J11: -1.5e-07 | K11: 5 | M11: Bin incr | N11: =(N9-N8)/(N10) -> 5e-08
A12: 7 | B12: -2.66951e-07 | C12: 0.0001 | J12: -1e-07 | K12: 9
A13: 8 | B13: 7.45293e-09 | C13: 0.0001 | J13: -5e-08 | K13: 7
A14: 9 | B14: -7.26326e-08 | C14: 0.0001 | J14: 0 | K14: 3
A15: 10 | B15: -1.30995e-07 | C15: 0.0001 | J15: 5e-08 | K15: 3
A16: 11 | B16: -2.83572e-07 | C16: 0.0001 | J16: 1e-07 | K16: 0
A17: 12 | B17: -3.88203e-08 | C17: 0.0001 | J17: 1.5e-07 | K17: 1
A18: 13 | B18: -1.57914e-07 | C18: 0.0001 | J18: 2e-07 | K18: 1
A19: 14 | B19: -2.51551e-07 | C19: 0.0001 | J19: 2.5e-07 | K19: 0
A20: 15 | B20: -2.71319e-07 | C20: 0.0001 | J20: =J19+$N$11 -> 3e-07 | K20: 4
A21: 16 | B21: -2.98583e-07 | C21: 0.0001 | K21: =FREQUENCY($B$6:$B$106,$J$8:$J$20) -> 0
A22: 17 | B22: -2.91374e-07 | C22: 0.0001
A23: 18 | B23: -2.65615e-07 | C23: 0.0001
A24: 19 | B24: -2.861e-07 | C24: 0.0001
A25: 20 | B25: -2.84346e-07 | C25: 0.0001
A26: 21 | B26: 2.92622e-07 | C26: 0.0001
A27: 22 | B27: -2.57951e-07 | C27: 0.0001
A28: 23 | B28: -2.88763e-07 | C28: 0.0001
A29: 24 | B29: -2.99556e-07 | C29: 0.0001
A30: 25 | B30: -2.99156e-07 | C30: 0.0001
A31: 26 | B31: -2.64348e-07 | C31: 0.0001
A32: 27 | B32: -2.49358e-07 | C32: 0.0001
A33: 28 | B33: -2.34157e-07 | C33: 0.0001
A34: 29 | B34: -2.22396e-07 | C34: 0.0001
A35: 30 | B35: -2.20319e-07 | C35: 0.0001
A36: 31 | B36: -2.84315e-07 | C36: 0.0001
A37: 32 | B37: -1.9746e-07 | C37: 0.0001
A38: 33 | B38: -2.5747e-07 | C38: 0.0001
A39: 34 | B39: -2.66778e-07 | C39: 0.0001
A40: 35 | B40: -2.94616e-07 | C40: 0.0001
A41: 36 | B41: -2.20119e-07 | C41: 0.0001
A42: 37 | B42: -1.04771e-07 | C42: 0.0001
A43: 38 | B43: -8.94939e-08 | C43: 0.0001
A44: 39 | B44: -2.50952e-07 | C44: 0.0001
A45: 40 | B45: -2.71511e-07 | C45: 0.0001
A46: 41 | B46: -1.75339e-08 | C46: 0.0001
A47: 42 | B47: -1.4523e-07 | C47: 0.0001
A48: 43 | B48: 1.6475e-07 | C48: 0.0001
A49: 44 | B49: 4.4647e-08 | C49: 0.0001
A50: 45 | B50: -2.464e-07 | C50: 0.0001
A51: 46 | B51: -2.86569e-07 | C51: 0.0001
A52: 47 | B52: -2.56405e-07 | C52: 0.0001
A53: 48 | B53: -2.77796e-07 | C53: 0.0001
A54: 49 | B54: -3.47003e-08 | C54: 0.0001
A55: 50 | B55: -2.80224e-07 | C55: 0.0001
A56: 51 | B56: -1.07387e-07 | C56: 0.0001
A57: 52 | B57: -5.52881e-08 | C57: 0.0001
A58: 53 | B58: 2.99997e-07 | C58: 0.0001
A59: 54 | B59: 2.99997e-07 | C59: 0.0001
A60: 55 | B60: -2.18652e-07 | C60: 0.0001
A61: 56 | B61: -2.62975e-07 | C61: 0.0001
A62: 57 | B62: -2.74883e-07 | C62: 0.0001
A63: 58 | B63: -2.71952e-07 | C63: 0.0001
A64: 59 | B64: -5.82127e-08 | C64: 0.0001
A65: 60 | B65: -2.97757e-07 | C65: 0.0001
A66: 61 | B66: -2.64538e-07 | C66: 0.0001
A67: 62 | B67: -2.91259e-07 | C67: 0.0001
A68: 63 | B68: -1.8566e-07 | C68: 0.0001
A69: 64 | B69: -2.94694e-07 | C69: 0.0001
A70: 65 | B70: -2.99168e-07 | C70: 0.0001
A71: 66 | B71: 3.59874e-08 | C71: 0.0001
A72: 67 | B72: -2.7397e-07 | C72: 0.0001
A73: 68 | B73: -2.74252e-07 | C73: 0.0001
A74: 69 | B74: -2.27725e-07 | C74: 0.0001
A75: 70 | B75: -1.74012e-07 | C75: 0.0001
A76: 71 | B76: -6.03236e-08 | C76: 0.0001
A77: 72 | B77: -1.45361e-07 | C77: 0.0001
A78: 73 | B78: -2.54248e-07 | C78: 0.0001
A79: 74 | B79: -2.80624e-07 | C79: 0.0001
A80: 75 | B80: -1.33044e-07 | C80: 0.0001
A81: 76 | B81: -2.55803e-07 | C81: 0.0001
A82: 77 | B82: -2.56794e-07 | C82: 0.0001
A83: 78 | B83: 1.45779e-07 | C83: 0.0001
A84: 79 | B84: -1.32543e-07 | C84: 0.0001
A85: 80 | B85: -2.89782e-07 | C85: 0.0001
A86: 81 | B86: -2.23441e-07 | C86: 0.0001
A87: 82 | B87: -2.63654e-07 | C87: 0.0001
A88: 83 | B88: -1.39279e-07 | C88: 0.0001
A89: 84 | B89: -2.19626e-07 | C89: 0.0001
A90: 85 | B90: -2.33688e-07 | C90: 0.0001
A91: 86 | B91: -2.65909e-07 | C91: 0.0001
A92: 87 | B92: -2.857e-07 | C92: 0.0001
A93: 88 | B93: -2.78761e-07 | C93: 0.0001
A94: 89 | B94: -2.59889e-07 | C94: 0.0001
A95: 90 | B95: -8.9265e-08 | C95: 0.0001
A96: 91 | B96: -2.51214e-07 | C96: 0.0001
A97: 92 | B97: 2.99947e-07 | C97: 0.0001
A98: 93 | B98: -1.27464e-07 | C98: 0.0001
A99: 94 | B99: -2.67397e-07 | C99: 0.0001
A100: 95 | B100: -2.84056e-07 | C100: 0.0001
A101: 96 | B101: -2.01034e-07 | C101: 0.0001
A102: 97 | B102: -2.53592e-07 | C102: 0.0001
A103: 98 | B103: -2.94003e-07 | C103: 0.0001
A104: 99 | B104: -1.66866e-07 | C104: 0.0001
A105: 100 | B105: -2.52374e-07 | C105: 0.0001
A106: 101 | B106: -2.86082e-07 | C106: 0.0001
